[Event "Live Chess"]
[Site "Chess.com"]
[Date "2024.06.01"]
[Round "-"]
[White "Zhevzh1k7"]
[Black "NeilDruggan73"]
[Result "1/2-1/2"]
[WhiteElo "1106"]
[BlackElo "1752"]
[TimeControl "300"]
[EndTime "14:00:53 PDT"]
[Termination "Game drawn by repetition"]

1. e4 {[%clk 0:04:57.4]} 1... d6 {[%clk 0:04:58.3]} 2. Nf3 {[%clk 0:04:52.9]}
2... Nf6 {[%clk 0:04:57.5]} 3. Nc3 {[%clk 0:04:50.5]} 3... g6 {[%clk 0:04:53.9]}
4. Bc4 {[%clk 0:04:48.8]} 4... Bg7 {[%clk 0:04:52.2]} 5. d4 {[%clk 0:04:45.8]}
5... Nxe4 {[%clk 0:04:50.6]} 6. Nxe4 {[%clk 0:04:42.3]} 6... d5 {[%clk
0:04:48.6]} 7. Bxd5 {[%clk 0:04:18.4]} 7... Qxd5 {[%clk 0:04:46.7]} 8. Nc3
{[%clk 0:04:15.6]} 8... Qc4 {[%clk 0:04:41]} 9. Qe2 {[%clk 0:04:09.9]} 9...
Qxe2+ {[%clk 0:04:38]} 10. Nxe2 {[%clk 0:04:08.2]} 10... Bg4 {[%clk 0:04:36.9]}
11. Ne5 {[%clk 0:03:53.3]} 11... Bxe2 {[%clk 0:04:31.7]} 12. Kxe2 {[%clk
0:03:51.9]} 12... Nd7 {[%clk 0:04:27.9]} 13. Nxd7 {[%clk 0:03:50]} 13... Kxd7
{[%clk 0:04:27.5]} 14. c3 {[%clk 0:03:47.8]} 14... Rad8 {[%clk 0:04:23.3]} 15.
Bf4 {[%clk 0:03:45.7]} 15... h6 {[%clk 0:04:20]} 16. Rhe1 {[%clk 0:03:43]} 16...
g5 {[%clk 0:04:18.8]} 17. Bg3 {[%clk 0:03:41.7]} 17... f5 {[%clk 0:04:17.4]} 18.
h3 {[%clk 0:03:39]} 18... f4 {[%clk 0:04:15.8]} 19. Bh2 {[%clk 0:03:37.7]} 19...
Kc6 {[%clk 0:04:14.1]} 20. Kd3 {[%clk 0:03:35.2]} 20... Rd7 {[%clk 0:04:12.5]}
21. g3 {[%clk 0:03:33.2]} 21... e5 {[%clk 0:04:07.9]} 22. gxf4 {[%clk
0:03:26.2]} 22... exf4 {[%clk 0:04:05.3]} 23. f3 {[%clk 0:03:15.9]} 23... b5
{[%clk 0:03:52.5]} 24. Re4 {[%clk 0:03:09.6]} 24... Rhd8 {[%clk 0:03:49]} 25.
Rae1 {[%clk 0:03:06]} 25... a5 {[%clk 0:03:47.2]} 26. Re6+ {[%clk 0:03:03.4]}
26... Rd6 {[%clk 0:03:44.1]} 27. Rxd6+ {[%clk 0:03:02.1]} 27... Rxd6 {[%clk
0:03:36.3]} 28. h4 {[%clk 0:02:44.9]} 28... b4 {[%clk 0:03:33.3]} 29. hxg5
{[%clk 0:02:40.2]} 29... hxg5 {[%clk 0:03:29.5]} 30. Rg1 {[%clk 0:02:35.8]}
30... Bf6 {[%clk 0:03:26.9]} 31. Rg4 {[%clk 0:02:25.1]} 31... a4 {[%clk
0:03:24.3]} 32. Bg1 {[%clk 0:02:22.1]} 32... Re6 {[%clk 0:02:41.5]} 33. cxb4
{[%clk 0:02:15.9]} 33... Re1 {[%clk 0:02:36.2]} 34. Kc3 {[%clk 0:02:05.3]} 34...
Kd5 {[%clk 0:02:25.5]} 35. Bf2 {[%clk 0:01:58.8]} 35... Re2 {[%clk 0:02:09.7]}
36. Bg1 {[%clk 0:01:46.6]} 36... Re1 {[%clk 0:01:58.3]} 37. Bf2 {[%clk
0:01:35.4]} 37... Re2 {[%clk 0:01:54]} 38. Bg1 {[%clk 0:01:34]} 38... Re1 {[%clk
0:01:40.1]} 1/2-1/2

[Event "Live Chess"]
[Site "Chess.com"]
[Date "2024.06.01"]
[Round "-"]
[White "NAZRIZ1977"]
[Black "oscalik"]
[Result "1-0"]
[WhiteElo "2149"]
[BlackElo "2333"]
[TimeControl "300"]
[EndTime "14:01:16 PDT"]
[Termination "NAZRIZ1977 won on time"]

1. d4 {[%clk 0:04:53.3]} 1... Nf6 {[%clk 0:04:58.3]} 2. Nf3 {[%clk 0:04:52.5]}
2... g6 {[%clk 0:04:55.3]} 3. g3 {[%clk 0:04:51.7]} 3... Bg7 {[%clk 0:04:54]} 4.
Bg2 {[%clk 0:04:50.8]} 4... O-O {[%clk 0:04:53.5]} 5. O-O {[%clk 0:04:50.2]}
5... d6 {[%clk 0:04:53]} 6. b3 {[%clk 0:04:49.3]} 6... c5 {[%clk 0:04:50.7]} 7.
Bb2 {[%clk 0:04:46.3]} 7... Nc6 {[%clk 0:04:46.9]} 8. d5 {[%clk 0:04:42.2]} 8...
Nb8 {[%clk 0:04:43.8]} 9. c4 {[%clk 0:04:41]} 9... Bg4 {[%clk 0:04:36.7]} 10. h3
{[%clk 0:04:39.7]} 10... Bxf3 {[%clk 0:04:35.7]} 11. Bxf3 {[%clk 0:04:39]} 11...
a6 {[%clk 0:04:31.4]} 12. a4 {[%clk 0:04:37.7]} 12... a5 {[%clk 0:04:17.5]} 13.
Nc3 {[%clk 0:04:29]} 13... Na6 {[%clk 0:04:16.4]} 14. Nb5 {[%clk 0:04:28.2]}
14... Nb4 {[%clk 0:04:14.1]} 15. e4 {[%clk 0:04:25.8]} 15... Qc8 {[%clk
0:04:06.1]} 16. Bg2 {[%clk 0:04:22.5]} 16... Rd8 {[%clk 0:03:55]} 17. Re1 {[%clk
0:04:15.4]} 17... Ne8 {[%clk 0:03:15.4]} 18. Bxg7 {[%clk 0:04:08.5]} 18... Nxg7
{[%clk 0:03:15.3]} 19. Qd2 {[%clk 0:03:58]} 19... Rd7 {[%clk 0:02:53.4]} 20.
Rad1 {[%clk 0:03:55.4]} 20... Qf8 {[%clk 0:02:51.8]} 21. Qb2 {[%clk 0:03:45.5]}
21... Rad8 {[%clk 0:02:48.9]} 22. f4 {[%clk 0:03:43.3]} 22... e6 {[%clk
0:02:47.5]} 23. Nc3 {[%clk 0:03:32]} 23... Nh5 {[%clk 0:02:28]} 24. Kh2 {[%clk
0:03:30.3]} 24... Qg7 {[%clk 0:02:25.7]} 25. Re2 {[%clk 0:03:20.4]} 25... Re8
{[%clk 0:02:09.8]} 26. Red2 {[%clk 0:02:49.1]} 26... exd5 {[%clk 0:02:03.9]} 27.
Nxd5 {[%clk 0:02:44.7]} 27... Nxd5 {[%clk 0:01:21.2]} 28. Qxg7+ {[%clk
0:02:39.7]} 28... Nxg7 {[%clk 0:01:21.1]} 29. Rxd5 {[%clk 0:02:37.7]} 29... Red8
{[%clk 0:01:07.2]} 30. e5 {[%clk 0:02:33.6]} 30... Nf5 {[%clk 0:01:06.4]} 31.
R1d3 {[%clk 0:02:24.7]} 31... Nd4 {[%clk 0:00:52.4]} 32. Rxd6 {[%clk 0:02:20.5]}
32... Rxd6 {[%clk 0:00:50.9]} 33. exd6 {[%clk 0:02:20.4]} 33... Rxd6 {[%clk
0:00:49.2]} 34. Bxb7 {[%clk 0:02:17.7]} 34... Rb6 {[%clk 0:00:43.9]} 35. Bd5
{[%clk 0:02:17.1]} 35... Nxb3 {[%clk 0:00:37.4]} 36. Re3 {[%clk 0:02:09.1]}
36... Nd4 {[%clk 0:00:35.5]} 37. h4 {[%clk 0:01:47.6]} 37... Rb2+ {[%clk
0:00:34.3]} 38. Kh3 {[%clk 0:01:46.5]} 38... Kf8 {[%clk 0:00:34]} 39. h5 {[%clk
0:01:33.2]} 39... Nf5 {[%clk 0:00:31.6]} 40. Rd3 {[%clk 0:01:19]} 40... Rb1
{[%clk 0:00:28.9]} 41. g4 {[%clk 0:01:12]} 41... Nd4 {[%clk 0:00:27.3]} 42. hxg6
{[%clk 0:01:08.6]} 42... hxg6 {[%clk 0:00:26.3]} 43. f5 {[%clk 0:01:04.4]} 43...
Kg7 {[%clk 0:00:25.5]} 44. fxg6 {[%clk 0:01:00.8]} 44... Kxg6 {[%clk 0:00:25.4]}
45. Kh4 {[%clk 0:00:51.8]} 45... Rb2 {[%clk 0:00:23.7]} 46. Be4+ {[%clk
0:00:49.9]} 46... Kg7 {[%clk 0:00:23.1]} 47. Bd5 {[%clk 0:00:42.7]} 47... Rh2+
{[%clk 0:00:21.4]} 48. Kg3 {[%clk 0:00:41.6]} 48... Rb2 {[%clk 0:00:21.1]} 49.
Re3 {[%clk 0:00:40.5]} 49... Rb3 {[%clk 0:00:18.7]} 50. Rxb3 {[%clk 0:00:35.9]}
50... Nxb3 {[%clk 0:00:18.6]} 51. Kf4 {[%clk 0:00:35]} 51... Kf6 {[%clk
0:00:18.5]} 52. g5+ {[%clk 0:00:33.5]} 52... Ke7 {[%clk 0:00:17]} 53. Ke5 {[%clk
0:00:32.2]} 53... Nd2 {[%clk 0:00:16.4]} 54. Kf5 {[%clk 0:00:29.9]} 54... Nb1
{[%clk 0:00:14.8]} 55. Bc6 {[%clk 0:00:28]} 55... Nc3 {[%clk 0:00:14.1]} 56. Bb5
{[%clk 0:00:26.9]} 56... Ne2 {[%clk 0:00:12.1]} 57. Ke4 {[%clk 0:00:25.8]} 57...
Nd4 {[%clk 0:00:11.1]} 58. Kd5 {[%clk 0:00:25.1]} 58... Ne6 {[%clk 0:00:10.6]}
59. g6 {[%clk 0:00:23.7]} 59... fxg6 {[%clk 0:00:09.7]} 60. Bc6 {[%clk
0:00:22.5]} 60... g5 {[%clk 0:00:08.9]} 61. Ke5 {[%clk 0:00:22.4]} 61... g4
{[%clk 0:00:08.1]} 62. Bd5 {[%clk 0:00:21.9]} 62... Nd4 {[%clk 0:00:08]} 63. Kf4
{[%clk 0:00:20.3]} 63... Kd6 {[%clk 0:00:07.9]} 64. Kxg4 {[%clk 0:00:19.5]}
64... Nb3 {[%clk 0:00:07.4]} 65. Kf4 {[%clk 0:00:19.4]} 65... Nd2 {[%clk
0:00:05.8]} 66. Ke3 {[%clk 0:00:19.3]} 66... Nb3 {[%clk 0:00:05.4]} 67. Kd3
{[%clk 0:00:19.2]} 67... Nd4 {[%clk 0:00:04.9]} 68. Kc3 {[%clk 0:00:19.1]} 68...
Nf5 {[%clk 0:00:04.3]} 69. Bb7 {[%clk 0:00:19]} 69... Ne7 {[%clk 0:00:03.7]} 70.
Ba6 {[%clk 0:00:18.9]} 70... Nc6 {[%clk 0:00:02.4]} 71. Bb5 {[%clk 0:00:18.8]}
71... Nb4 {[%clk 0:00:02]} 72. Kb2 {[%clk 0:00:18.7]} 72... Kc7 {[%clk
0:00:01.5]} 73. Kb3 {[%clk 0:00:18.6]} 73... Kb6 {[%clk 0:00:01.4]} 74. Ka3
{[%clk 0:00:18.5]} 74... Nc6 {[%clk 0:00:00.9]} 75. Kb3 {[%clk 0:00:18.4]} 75...
Nd4+ {[%clk 0:00:00.7]} 76. Ka3 {[%clk 0:00:18.3]} 76... Nxb5+ {[%clk
0:00:00.4]} 77. Kb3 {[%clk 0:00:18.2]} 1-0

[Event "Live Chess"]
[Site "Chess.com"]
[Date "2024.06.01"]
[Round "-"]
[White "DylanMeyer1"]
[Black "Dhaydon19"]
[Result "0-1"]
[WhiteElo "1712"]
[BlackElo "2679"]
[TimeControl "300"]
[EndTime "14:02:04 PDT"]
[Termination "Dhaydon19 won by resignation"]

1. c4 {[%clk 0:04:56.7]} 1... e6 {[%clk 0:04:59.6]} 2. Nc3 {[%clk 0:04:55.1]}
2... d5 {[%clk 0:04:59]} 3. cxd5 {[%clk 0:04:53.8]} 3... exd5 {[%clk 0:04:58.3]}
4. g3 {[%clk 0:04:52.8]} 4... Nf6 {[%clk 0:04:58]} 5. Bg2 {[%clk 0:04:52.2]}
5... Be7 {[%clk 0:04:57.7]} 6. e3 {[%clk 0:04:51.6]} 6... c6 {[%clk 0:04:57.4]}
7. Nge2 {[%clk 0:04:51]} 7... O-O {[%clk 0:04:57.1]} 8. O-O {[%clk 0:04:50.4]}
8... Nbd7 {[%clk 0:04:56.8]} 9. b3 {[%clk 0:04:49.9]} 9... Re8 {[%clk
0:04:56.2]} 10. Bb2 {[%clk 0:04:49.4]} 10... Nf8 {[%clk 0:04:55.9]} 11. d4
{[%clk 0:04:48.6]} 11... Ng6 {[%clk 0:04:55.6]} 12. Qc2 {[%clk 0:04:48]} 12...
Bd6 {[%clk 0:04:55.3]} 13. Rae1 {[%clk 0:04:47.3]} 13... Bg4 {[%clk 0:04:53.2]}
14. h3 {[%clk 0:04:46]} 14... Be6 {[%clk 0:04:51.2]} 15. Kh2 {[%clk 0:04:45.5]}
15... Qd7 {[%clk 0:04:49.9]} 16. f3 {[%clk 0:04:36.4]} 16... Nh4 {[%clk
0:04:45.9]} 17. Nf4 {[%clk 0:04:32.4]} 17... Nxg2 {[%clk 0:04:41.7]} 18. Nxg2
{[%clk 0:04:13.8]} 18... Bxh3 {[%clk 0:04:40.2]} 19. Nf4 {[%clk 0:04:11]} 19...
Bxf4 {[%clk 0:04:38.8]} 20. exf4 {[%clk 0:04:10.9]} 20... Bf5 {[%clk 0:04:36.7]}
21. Qd2 {[%clk 0:04:08]} 21... h5 {[%clk 0:04:29.2]} 22. Rxe8+ {[%clk
0:03:58.9]} 22... Rxe8 {[%clk 0:04:27.5]} 23. Re1 {[%clk 0:03:58.8]} 23... Rxe1
{[%clk 0:04:26.4]} 24. Qxe1 {[%clk 0:03:58.7]} 24... Qe6 {[%clk 0:04:25.4]} 25.
Qd2 {[%clk 0:03:56.6]} 25... Qd6 {[%clk 0:04:22.1]} 26. Nd1 {[%clk 0:03:46.3]}
26... b6 {[%clk 0:04:17.7]} 27. Ne3 {[%clk 0:03:45.3]} 27... Bd7 {[%clk
0:04:16.9]} 28. Kg2 {[%clk 0:03:35.3]} 28... h4 {[%clk 0:04:15.8]} 29. Nf1
{[%clk 0:03:20.3]} 29... hxg3 {[%clk 0:04:11.6]} 30. Kxg3 {[%clk 0:03:19.3]}
30... Nh5+ {[%clk 0:04:09.2]} 31. Kf2 {[%clk 0:03:17.2]} 31... Nxf4 {[%clk
0:04:06]} 32. Ne3 {[%clk 0:03:14.9]} 32... Nh3+ {[%clk 0:04:03.1]} 33. Ke1
{[%clk 0:03:13.8]} 33... Qg3+ {[%clk 0:04:01.9]} 34. Kd1 {[%clk 0:03:12.8]}
34... Qxf3+ {[%clk 0:04:01.3]} 35. Kc2 {[%clk 0:03:12.1]} 35... Nf2 {[%clk
0:04:00.7]} 36. Kb1 {[%clk 0:02:59.9]} 36... Ne4 {[%clk 0:03:58.1]} 37. Qd3
{[%clk 0:02:56.7]} 37... Bf5 {[%clk 0:03:55.8]} 38. Nxf5 {[%clk 0:02:41.8]}
38... Qxd3+ {[%clk 0:03:53.1]} 0-1

[Event "Live Chess"]
[Site "Chess.com"]
[Date "2024.06.01"]
[Round "-"]
[White "RichardABates"]
[Black "Ferrarifan27"]
[Result "1-0"]
[WhiteElo "2208"]
[BlackElo "2054"]
[TimeControl "300"]
[EndTime "14:02:22 PDT"]
[Termination "RichardABates won by resignation"]

1. d4 {[%clk 0:04:58.3]} 1... Nf6 {[%clk 0:04:43.5]} 2. c4 {[%clk 0:04:57]} 2...
e6 {[%clk 0:04:40.8]} 3. Nf3 {[%clk 0:04:55.7]} 3... Bb4+ {[%clk 0:04:39]} 4.
Bd2 {[%clk 0:04:53.8]} 4... Qe7 {[%clk 0:04:37.6]} 5. g3 {[%clk 0:04:52.6]} 5...
O-O {[%clk 0:04:35.6]} 6. Bg2 {[%clk 0:04:51.1]} 6... d5 {[%clk 0:04:30.6]} 7.
O-O {[%clk 0:04:49.1]} 7... Bxd2 {[%clk 0:04:27.2]} 8. Qxd2 {[%clk 0:04:48]}
8... dxc4 {[%clk 0:04:24.3]} 9. Na3 {[%clk 0:04:46.1]} 9... Bd7 {[%clk
0:04:14.7]} 10. Nxc4 {[%clk 0:04:44.5]} 10... Nc6 {[%clk 0:04:08.6]} 11. e3
{[%clk 0:04:41.8]} 11... Rad8 {[%clk 0:04:06]} 12. Qc2 {[%clk 0:04:37.8]} 12...
Nb4 {[%clk 0:03:55.3]} 13. Qb3 {[%clk 0:04:35.2]} 13... b6 {[%clk 0:03:52.1]}
14. a3 {[%clk 0:04:31.9]} 14... Nc6 {[%clk 0:03:48.9]} 15. Nfe5 {[%clk
0:04:29.8]} 15... Nxe5 {[%clk 0:03:46.7]} 16. Nxe5 {[%clk 0:04:26.2]} 16... c5
{[%clk 0:03:33.4]} 17. Nxd7 {[%clk 0:04:08.1]} 17... Nxd7 {[%clk 0:03:30.9]} 18.
Rfd1 {[%clk 0:04:05.7]} 18... cxd4 {[%clk 0:03:29.4]} 19. Rxd4 {[%clk
0:04:04.5]} 19... Nc5 {[%clk 0:03:27.1]} 20. Qb4 {[%clk 0:04:03]} 20... Rxd4
{[%clk 0:03:24.9]} 21. exd4 {[%clk 0:04:01.9]} 21... a5 {[%clk 0:03:20.9]} 22.
Qxb6 {[%clk 0:03:58.8]} 22... Na4 {[%clk 0:03:09.5]} 23. Qxa5 {[%clk 0:03:57.6]}
23... Nxb2 {[%clk 0:03:08.7]} 24. Qb5 {[%clk 0:03:45.5]} 24... Qa7 {[%clk
0:02:51.1]} 25. Qxb2 {[%clk 0:03:43.5]} 25... Rb8 {[%clk 0:02:50]} 26. Qc3
{[%clk 0:03:41.4]} 26... g6 {[%clk 0:02:48.1]} 27. Rc1 {[%clk 0:03:38.9]} 27...
Rd8 {[%clk 0:02:40.6]} 28. Qc5 {[%clk 0:03:35.8]} 28... Qa4 {[%clk 0:02:35.7]}
29. d5 {[%clk 0:03:34.3]} 29... exd5 {[%clk 0:02:30.4]} 30. Bxd5 {[%clk
0:03:32.7]} 30... Qd7 {[%clk 0:02:27.8]} 31. Rd1 {[%clk 0:03:25.4]} 1-0

[Event "Live Chess"]
[Site "Chess.com"]
[Date "2024.06.01"]
[Round "-"]
[White "LL220284LL"]
[Black "cymbalshift"]
[Result "1-0"]
[WhiteElo "2554"]
[BlackElo "1493"]
[TimeControl "300"]
[EndTime "14:02:26 PDT"]
[Termination "LL220284LL won on time"]

1. Nf3 {[%clk 0:04:57.2]} 1... Nf6 {[%clk 0:04:58]} 2. b3 {[%clk 0:04:57.1]}
2... b6 {[%clk 0:04:56.8]} 3. Bb2 {[%clk 0:04:54.3]} 3... Bb7 {[%clk 0:04:56.4]}
4. e3 {[%clk 0:04:53.6]} 4... e6 {[%clk 0:04:54.1]} 5. Be2 {[%clk 0:04:53.1]}
5... c5 {[%clk 0:04:52.2]} 6. O-O {[%clk 0:04:52.5]} 6... Be7 {[%clk 0:04:50.3]}
7. d4 {[%clk 0:04:51.9]} 7... O-O {[%clk 0:04:47]} 8. c4 {[%clk 0:04:50.6]} 8...
Qc7 {[%clk 0:04:39.8]} 9. Nc3 {[%clk 0:04:47.2]} 9... a6 {[%clk 0:04:38.5]} 10.
Rc1 {[%clk 0:04:44.1]} 10... d5 {[%clk 0:04:29]} 11. cxd5 {[%clk 0:04:42.5]}
11... exd5 {[%clk 0:04:26.9]} 12. dxc5 {[%clk 0:04:41.2]} 12... bxc5 {[%clk
0:04:25.4]} 13. Na4 {[%clk 0:04:40.6]} 13... Nbd7 {[%clk 0:04:22.6]} 14. Rc2
{[%clk 0:04:36]} 14... Rac8 {[%clk 0:04:12.3]} 15. Qa1 {[%clk 0:04:34.6]} 15...
Bd6 {[%clk 0:03:46.5]} 16. Rfc1 {[%clk 0:04:30.5]} 16... Rfe8 {[%clk 0:03:34.3]}
17. h3 {[%clk 0:04:25.8]} 17... Qd8 {[%clk 0:03:05.8]} 18. Bxf6 {[%clk
0:04:17.9]} 18... gxf6 {[%clk 0:02:57.3]} 19. Rd1 {[%clk 0:04:02.6]} 19... Qe7
{[%clk 0:02:51.2]} 20. Rcd2 {[%clk 0:03:46.7]} 20... Ne5 {[%clk 0:02:34]} 21.
Nxe5 {[%clk 0:03:42.2]} 21... fxe5 {[%clk 0:02:29]} 22. Bg4 {[%clk 0:03:40.4]}
22... Rcd8 {[%clk 0:02:20.1]} 23. Qb1 {[%clk 0:03:33.3]} 23... d4 {[%clk
0:02:03.8]} 24. Qf5 {[%clk 0:03:30.2]} 24... Bc8 {[%clk 0:01:46.8]} 25. Qh5
{[%clk 0:03:23.5]} 25... Bxg4 {[%clk 0:01:28.2]} 26. Qxg4+ {[%clk 0:03:23.4]}
26... Kh8 {[%clk 0:01:26.9]} 27. Nb6 {[%clk 0:03:19.9]} 27... Rg8 {[%clk
0:01:24]} 28. Qf5 {[%clk 0:03:16.5]} 28... Rg5 {[%clk 0:01:15.3]} 29. Qc2 {[%clk
0:03:00.8]} 29... Rdg8 {[%clk 0:00:58.6]} 30. f3 {[%clk 0:02:56.9]} 30... Qb7
{[%clk 0:00:35.2]} 31. Nc4 {[%clk 0:02:50.3]} 31... Qxf3 {[%clk 0:00:31.4]} 32.
Nxd6 {[%clk 0:02:46.6]} 32... Qxe3+ {[%clk 0:00:28.2]} 33. Kh1 {[%clk
0:02:41.2]} 33... d3 {[%clk 0:00:18.5]} 34. Rxd3 {[%clk 0:02:27.3]} 34... Qf4
{[%clk 0:00:10.6]} 35. Rf3 {[%clk 0:02:25.1]} 35... Qh4 {[%clk 0:00:05.2]} 36.
Nxf7+ {[%clk 0:02:23.7]} 36... Kg7 {[%clk 0:00:02.7]} 37. Nxg5 {[%clk
0:02:23.6]} 1-0

[Event "Live Chess"]
[Site "Chess.com"]
[Date "2024.06.01"]
[Round "-"]
[White "wadsy27"]
[Black "jellhhggffhjjjjjj"]
[Result "0-1"]
[WhiteElo "2530"]
[BlackElo "319"]
[TimeControl "300"]
[EndTime "14:02:28 PDT"]
[Termination "jellhhggffhjjjjjj won - game abandoned"]

1. d4 {[%clk 0:04:58.9]} 1... b6 {[%clk 0:04:54.5]} 2. e4 {[%clk 0:04:57.9]}
2... Bb7 {[%clk 0:04:53.2]} 3. Bd3 {[%clk 0:04:57.4]} 3... e5 {[%clk 0:04:51.8]}
4. Nf3 {[%clk 0:04:56]} 4... exd4 {[%clk 0:04:48.8]} 5. O-O {[%clk 0:04:53.8]}
5... d5 {[%clk 0:04:46.3]} 6. exd5 {[%clk 0:04:48.9]} 6... Bxd5 {[%clk 0:04:45]}
7. Re1+ {[%clk 0:04:48.4]} 7... Ne7 {[%clk 0:04:40.2]} 8. Nxd4 {[%clk
0:04:47.7]} 8... c5 {[%clk 0:04:32.2]} 9. Nf5 {[%clk 0:04:46.7]} 9... Nc6 {[%clk
0:04:27.1]} 10. Bg5 {[%clk 0:04:44.2]} 10... f6 {[%clk 0:04:25.1]} 11. Bb5
{[%clk 0:04:22.6]} 11... fxg5 {[%clk 0:04:12.7]} 12. Nc3 {[%clk 0:04:21.3]}
12... Bxg2 {[%clk 0:04:02.2]} 13. Nd6+ {[%clk 0:04:13.2]} 13... Kd7 {[%clk
0:03:53.1]} 14. Nf7+ {[%clk 0:04:12.4]} 14... Kc8 {[%clk 0:03:46.3]} 15. Nxd8
{[%clk 0:04:11.2]} 15... Nxd8 {[%clk 0:03:43.2]} 16. Qd7+ {[%clk 0:04:08.4]}
16... Kb8 {[%clk 0:03:38.6]} 17. Qxd8+ {[%clk 0:04:07.7]} 17... Nc8 {[%clk
0:03:35.6]} 18. Kxg2 {[%clk 0:04:06.9]} 18... h5 {[%clk 0:03:31.8]} 19. Nd5
{[%clk 0:04:06]} 19... a6 {[%clk 0:03:24.3]} 0-1

[Event "Live Chess"]
[Site "Chess.com"]
[Date "2024.06.01"]
[Round "-"]
[White "uselessduffer"]
[Black "nitrofish07"]
[Result "1-0"]
[WhiteElo "2380"]
[BlackElo "2094"]
[TimeControl "300"]
[EndTime "14:03:01 PDT"]
[Termination "uselessduffer won by resignation"]

1. e4 {[%clk 0:04:55.7]} 1... c5 {[%clk 0:04:59.3]} 2. Nc3 {[%clk 0:04:54.5]}
2... a6 {[%clk 0:04:56.7]} 3. g3 {[%clk 0:04:52.5]} 3... g6 {[%clk 0:04:55.7]}
4. Bg2 {[%clk 0:04:51.5]} 4... Bg7 {[%clk 0:04:55.4]} 5. d3 {[%clk 0:04:48.7]}
5... d6 {[%clk 0:04:54.8]} 6. Be3 {[%clk 0:04:47.2]} 6... Nc6 {[%clk 0:04:54.2]}
7. Qd2 {[%clk 0:04:45.7]} 7... e6 {[%clk 0:04:48.7]} 8. Nge2 {[%clk 0:04:43.3]}
8... Nd4 {[%clk 0:04:46.8]} 9. O-O {[%clk 0:04:42.1]} 9... Ne7 {[%clk
0:04:45.4]} 10. Bh6 {[%clk 0:04:40]} 10... O-O {[%clk 0:04:41.9]} 11. Nxd4
{[%clk 0:04:31.8]} 11... cxd4 {[%clk 0:04:41.8]} 12. Ne2 {[%clk 0:04:30.9]}
12... e5 {[%clk 0:04:38.7]} 13. Bxg7 {[%clk 0:04:16.1]} 13... Kxg7 {[%clk
0:04:38.6]} 14. c3 {[%clk 0:04:15.5]} 14... dxc3 {[%clk 0:04:24.7]} 15. Qxc3
{[%clk 0:04:14]} 15... Be6 {[%clk 0:04:23.4]} 16. d4 {[%clk 0:04:07.7]} 16... f6
{[%clk 0:04:19.9]} 17. b3 {[%clk 0:03:55.9]} 17... Rc8 {[%clk 0:04:18.7]} 18.
Qd2 {[%clk 0:03:55]} 18... Qb6 {[%clk 0:04:16.4]} 19. f4 {[%clk 0:03:46.2]}
19... f5 {[%clk 0:04:05.6]} 20. Kh1 {[%clk 0:03:19.1]} 20... fxe4 {[%clk
0:04:04.4]} 21. fxe5 {[%clk 0:03:11.5]} 21... dxe5 {[%clk 0:03:58.8]} 22. Bxe4
{[%clk 0:02:34.6]} 22... Rxf1+ {[%clk 0:03:51.7]} 23. Rxf1 {[%clk 0:02:34.5]}
23... Rd8 {[%clk 0:03:51.4]} 24. Qg5 {[%clk 0:02:29.6]} 24... Bd5 {[%clk
0:03:34.5]} 25. Qxe7+ {[%clk 0:02:24.4]} 1-0

[Event "Live Chess"]
[Site "Chess.com"]
[Date "2024.06.01"]
[Round "-"]
[White "dl_chess"]
[Black "kylet1990"]
[Result "1-0"]
[WhiteElo "1185"]
[BlackElo "734"]
[TimeControl "300"]
[EndTime "14:03:15 PDT"]
[Termination "dl_chess won by checkmate"]

1. e4 {[%clk 0:04:56.3]} 1... c6 {[%clk 0:04:59]} 2. d4 {[%clk 0:04:53.2]} 2...
d5 {[%clk 0:04:58.5]} 3. Nc3 {[%clk 0:04:52.3]} 3... dxe4 {[%clk 0:04:57.3]} 4.
Nxe4 {[%clk 0:04:51.4]} 4... Bf5 {[%clk 0:04:56.9]} 5. Ng3 {[%clk 0:04:50.4]}
5... e6 {[%clk 0:04:55.1]} 6. Nxf5 {[%clk 0:04:48.1]} 6... exf5 {[%clk
0:04:54.4]} 7. Bd3 {[%clk 0:04:46.5]} 7... g6 {[%clk 0:04:51.3]} 8. Nf3 {[%clk
0:04:40.3]} 8... Bd6 {[%clk 0:04:48.2]} 9. O-O {[%clk 0:04:38.7]} 9... Nd7
{[%clk 0:04:42.5]} 10. Re1+ {[%clk 0:04:37]} 10... Be7 {[%clk 0:04:40.8]} 11.
Bg5 {[%clk 0:04:32.1]} 11... b5 {[%clk 0:04:31.3]} 12. c4 {[%clk 0:04:21.3]}
12... bxc4 {[%clk 0:04:14.6]} 13. Bxc4 {[%clk 0:04:20.1]} 13... f6 {[%clk
0:04:09.2]} 14. Be3 {[%clk 0:04:06.2]} 14... Nh6 {[%clk 0:04:01.1]} 15. Bxh6
{[%clk 0:04:02.3]} 15... Qc7 {[%clk 0:03:57.1]} 16. Be3 {[%clk 0:03:31.4]} 16...
Nb6 {[%clk 0:03:51.4]} 17. Bb3 {[%clk 0:03:29.5]} 17... O-O-O {[%clk 0:03:48.9]}
18. Rc1 {[%clk 0:03:27.1]} 18... Bd6 {[%clk 0:03:35.5]} 19. d5 {[%clk
0:03:19.7]} 19... c5 {[%clk 0:03:33.8]} 20. Rc2 {[%clk 0:03:04.4]} 20... g5
{[%clk 0:03:23.6]} 21. Qc1 {[%clk 0:03:02.7]} 21... g4 {[%clk 0:03:18.9]} 22.
Nh4 {[%clk 0:02:49.6]} 22... Bxh2+ {[%clk 0:03:16.6]} 23. Kh1 {[%clk 0:02:48.2]}
23... Bd6 {[%clk 0:03:12.5]} 24. Bxc5 {[%clk 0:02:41.5]} 24... Bxc5 {[%clk
0:03:10.1]} 25. Rxc5 {[%clk 0:02:39.9]} 25... Qxc5 {[%clk 0:03:06]} 26. Qxc5+
{[%clk 0:02:38.5]} 26... Kb7 {[%clk 0:03:03.7]} 27. Re7+ {[%clk 0:02:28.3]}
27... Ka6 {[%clk 0:02:58.6]} 28. a4 {[%clk 0:02:17.9]} 28... Rxd5 {[%clk
0:02:55.3]} 29. Bxd5 {[%clk 0:02:11.1]} 29... Nxd5 {[%clk 0:02:53.2]} 30. Qb5#
{[%clk 0:02:08.8]} 1-0

[Event "Live Chess"]
[Site "Chess.com"]
[Date "2024.06.01"]
[Round "-"]
[White "gobbles19"]
[Black "Sweet-O"]
[Result "1-0"]
[WhiteElo "2263"]
[BlackElo "1549"]
[TimeControl "300"]
[EndTime "14:03:15 PDT"]
[Termination "gobbles19 won by resignation"]

1. e4 {[%clk 0:04:57.4]} 1... e5 {[%clk 0:04:59.2]} 2. d4 {[%clk 0:04:55.6]}
2... Nf6 {[%clk 0:04:59.1]} 3. dxe5 {[%clk 0:04:52.5]} 3... Nxe4 {[%clk
0:04:58.3]} 4. Bc4 {[%clk 0:04:52.2]} 4... c6 {[%clk 0:04:48.8]} 5. Nf3 {[%clk
0:04:29.4]} 5... b5 {[%clk 0:04:46.6]} 6. Bxb5 {[%clk 0:04:25.1]} 6... Qb6
{[%clk 0:04:35.3]} 7. Qe2 {[%clk 0:04:08.7]} 7... Bc5 {[%clk 0:04:16.6]} 8. Qxe4
{[%clk 0:03:58.5]} 8... Qxb5 {[%clk 0:04:06.3]} 9. Nc3 {[%clk 0:03:53.4]} 9...
Qb6 {[%clk 0:04:00.3]} 10. O-O {[%clk 0:03:51.9]} 10... Ba6 {[%clk 0:03:53.4]}
11. Na4 {[%clk 0:03:43]} 11... Qb4 {[%clk 0:03:32.9]} 12. Nxc5 {[%clk
0:03:35.3]} 12... Qxc5 {[%clk 0:03:32.8]} 13. Re1 {[%clk 0:03:27.7]} 13... O-O
{[%clk 0:03:28.9]} 14. Ng5 {[%clk 0:03:22.8]} 14... g6 {[%clk 0:03:21.5]} 15.
Qh4 {[%clk 0:03:11.9]} 15... h6 {[%clk 0:03:15.5]} 16. Qxh6 {[%clk 0:03:09.8]}
1-0